[Event "Belarus-ch Women 2022"]
[Site "Minsk"]
[Date "2022.01.13"]
[Round "2.5"]
[White "Ajusheva, Renata"]
[Black "Zeliantsova, Kseniya"]
[Result "1/2-1/2"]
[ECO "A43"]
[WhiteElo "1464"]
[BlackElo "1988"]
[Annotator "ChessBase"]
[PlyCount "81"]
[EventDate "2022.01.11"]
[EventType "tourn"]
[EventCountry "BLR"]
[SourceTitle "playchess.com"]
[Source "ChessBase"]
[SourceQuality "1"]
[TimeControl "40/5400+30:1800+30"]

1. d4 {[%emt 0:00:02]} Nf6 {[%emt 0:00:06]} 2. Nc3 {[%emt 0:00:04]} c5 {[%emt 0:04:58]} 3. d5 {[%emt 0:00:22]} g6 {[%emt 0:00:14]} 4. e4 {[%emt 0:00:05]} d6 {[%emt 0:00:04]} 5. Bb5+ {[%emt 0:00:03]} Bd7 {[%emt 0:00:27]} 6. a4 {[%emt 0:00:05]} Bg7 {[%emt 0:01:01]} 7. h3 {[%emt 0:00:16]} Qc7 {[%emt 0:05:53]} 8. Nf3 {[%emt 0:00:35]} a6 {[%emt 0:02:51]} 9. Be2 {[%emt 0:00:41]} O-O {[%emt 0:01:36]} 10. O-O {[%emt 0:00:09]} Ra7 {[%emt 0:10:30]} 11. Re1 {[%emt 0:06:08]} e5 {[%emt 0:10:49]} 12. dxe6 {[%emt 0:01:52]} Bxe6 {[%emt 0:00:48]} 13. Nd5 {[%emt 0:20:14]} Bxd5 {[%emt 0:12:32]} 14. exd5 {[%emt 0:01:05]} b6 {[%emt 0:00:12]} 15. c4 {[%emt 0:02:30]} Qd8 {[%emt 0:00:57]} 16. Bd3 {[%emt 0:03:16]} Re7 {[%emt 0:03:11]} 17. Rxe7 {[%emt 0:00:24]} Qxe7 {[%emt 0:00:04]} 18. Qb3 {[%emt 0:00:14]} Nbd7 {[%emt 0:02:24]} 19. Bf4 {[%emt 0:00:59]} Re8 {[%emt 0:10:34]} 20. Qa2 {[%emt 0:09:22]} Nh5 {[%emt 0:02:11]} 21. Bd2 {[%emt 0:07:44]} Ne5 {[%emt 0:05:03]} 22. Be2 {[%emt 0:06:15]} Nxf3+ {[%emt 0:04:04]} 23. Bxf3 {[%emt 0:00:05]} Qh4 {[%emt 0:00:21]} 24. Bxh5 {[%emt 0:04:45]} Bd4 {[%emt 0:03:25]} 25. Be3 {[%emt 0:04:19]} Bxe3 {[%emt 0:01:14]} 26. fxe3 {[%emt 0:00:04]} gxh5 {[%emt 0:01:24]} 27. Qb3 {[%emt 0:00:40]} Qg3 {[%emt 0:00:07]} 28. Qxb6 {[%emt 0:00:53]} Rxe3 {[%emt 0:00:33]} 29. Kh1 {[%emt 0:00:49]} Rb3 {[%emt 0:08:00]} 30. Qxa6 {[%emt 0:00:30]} Rxb2 {[%emt 0:00:03]} 31. Rg1 {[%emt 0:00:09]} Ra2 {[%emt 0:01:08]} 32. Qb5 {[%emt 0:01:54]} Kg7 {[%emt 0:01:15]} 33. a5 {[%emt 0:01:59]} Qe5 {[%emt 0:01:21]} 34. a6 {[%emt 0:06:09]} Qe4 {[%emt 0:01:43]} 35. Kh2 {[%emt 0:09:04]} h4 {[%emt 0:02:54]} 36. Kh1 {[%emt 0:01:01]} Qc2 {[%emt 0:01:39]} 37. Qb6 {[%emt 0:01:51]} Qxc4 {[%emt 0:00:35]} 38. Qxd6 {[%emt 0:00:06]} Rxa6 {[%emt 0:00:20]} 39. Qe5+ {[%emt 0:00:05]} Kg8 {[%emt 0:00:14]} 40. Qe8+ {[%emt 0:00:00]} Kg7 {[%emt 0:00:00]} 41. Qe5+ {[%emt 0:03:22]} 1/2-1/2

[Event "Belarus-ch Women 2022"]
[Site "Minsk"]
[Date "2022.01.13"]
[Round "3.1"]
[White "Zeliantsova, Kseniya"]
[Black "Sidorenja, Milena"]
[Result "1-0"]
[ECO "B40"]
[WhiteElo "1988"]
[BlackElo "1510"]
[Annotator "ChessBase"]
[PlyCount "85"]
[EventDate "2022.01.11"]
[EventType "tourn"]
[EventCountry "BLR"]
[SourceTitle "playchess.com"]
[Source "ChessBase"]
[SourceQuality "1"]
[TimeControl "40/5400+30:1800+30"]

1. e4 {[%emt 0:00:02]} c5 {[%emt 0:00:07]} 2. Nf3 {[%emt 0:00:05]} a6 {[%emt 0:00:13]} 3. Nc3 {[%emt 0:00:40]} b5 {[%emt 0:00:27]} 4. g3 {[%emt 0:00:07]} Bb7 {[%emt 0:01:35]} 5. Bg2 {[%emt 0:04:45]} e6 {[%emt 0:01:08]} 6. d4 {[%emt 0:00:17]} Nf6 {[%emt 0:09:25]} 7. Qe2 {[%emt 0:09:13]} b4 {[%emt 0:14:25]} 8. Na4 {[%emt 0:00:54]} Qa5 {[%emt 0:02:15]} 9. Nxc5 {[%emt 0:00:35]} Bxc5 {[%emt 0:00:10]} 10. dxc5 {[%emt 0:00:04]} Qxc5 {[%emt 0:08:03]} 11. Be3 {[%emt 0:04:38]} Qe7 {[%emt 0:08:25]} 12. e5 {[%emt 0:05:11]} Nd5 {[%emt 0:01:22]} 13. Bg5 {[%emt 0:06:12]} Qc5 {[%emt 0:00:22]} 14. O-O {[%emt 0:01:01]} O-O {[%emt 0:01:28]} 15. Nd2 {[%emt 0:05:18]} Qxc2 {[%emt 0:15:35]} 16. Be4 {[%emt 0:00:11]} Qxb2 {[%emt 0:07:42]} 17. Qh5 {[%emt 0:05:22]} g6 {[%emt 0:00:08]} 18. Qh4 {[%emt 0:00:20]} Qxe5 {[%emt 0:07:56]} 19. Nc4 {[%emt 0:04:18]} Qd4 {[%emt 0:01:09]} 20. Nd6 {[%emt 0:00:31]} Bc6 {[%emt 0:04:20]} 21. Bh6 {[%emt 0:08:16]} f5 {[%emt 0:02:44]} 22. Bxf8 {[%emt 0:01:01]} Kxf8 {[%emt 0:00:10]} 23. Rad1 {[%emt 0:05:38]} Qf6 {[%emt 0:02:10]} 24. Qh6+ {[%emt 0:05:25]} Kg8 {[%emt 0:01:29]} 25. Bxd5 {[%emt 0:00:20]} Bxd5 {[%emt 0:00:03]} 26. Ne8 {[%emt 0:00:34]} Qf7 {[%emt 0:05:15]} 27. Nc7 {[%emt 0:00:22]} Ra7 {[%emt 0:00:03]} 28. Nxd5 {[%emt 0:00:41]} exd5 {[%emt 0:00:06]} 29. Rfe1 {[%emt 0:01:25]} Nc6 {[%emt 0:01:30]} 30. Rxd5 {[%emt 0:00:44]} Ra8 {[%emt 0:00:02]} 31. Red1 {[%emt 0:00:53]} Rd8 {[%emt 0:00:29]} 32. Qd2 {[%emt 0:00:50]} a5 {[%emt 0:02:01]} 33. Rxd7 {[%emt 0:00:52]} Rxd7 {[%emt 0:00:04]} 34. Qxd7 {[%emt 0:00:05]} Qxd7 {[%emt 0:00:03]} 35. Rxd7 {[%emt 0:00:07]} a4 {[%emt 0:00:53]} 36. Rc7 {[%emt 0:00:55]} Ne5 {[%emt 0:00:27]} 37. Kg2 {[%emt 0:04:52]} a3 {[%emt 0:00:59]} 38. Rb7 {[%emt 0:00:18]} Nd3 {[%emt 0:00:28]} 39. Kf3 {[%emt 0:00:29]} Ne5+ {[%emt 0:02:36]} 40. Kf4 {[%emt 0:00:00]} Nc6 {[%emt 0:00:00]} 41. Kg5 {[%emt 0:02:10]} Kf8 {[%emt 0:05:22]} 42. Rb6 {[%emt 0:00:16]} Ne5 {[%emt 0:00:47]} 43. Rxb4 {[%emt 0:00:13]} 1-0

[Event "Belarus-ch Women 2022"]
[Site "Minsk"]
[Date "2022.01.13"]
[Round "3.2"]
[White "Norman, Kseniya"]
[Black "Ajusheva, Renata"]
[Result "1-0"]
[ECO "A25"]
[WhiteElo "1810"]
[BlackElo "1464"]
[Annotator "NA"]
[PlyCount "107"]
[EventDate "2022.01.11"]
[EventType "tourn"]
[EventCountry "BLR"]
[SourceTitle "playchess.com"]
[Source "ChessBase"]
[SourceQuality "1"]
[TimeControl "40/5400+30:1800+30"]

1. c4 {[%emt 0:01:52]} e5 {[%emt 0:03:26]} 2. g3 {[%emt 0:00:35]} g6 {[%emt 0:00:23]} 3. Bg2 {[%emt 0:00:22]} Bg7 {[%emt 0:00:04]} 4. Nc3 {[%emt 0:00:18]} Nc6 {[%emt 0:00:45]} 5. e3 {[%emt 0:01:20]} Nge7 {[%emt 1:28:22]} 6. Nge2 {[%emt 0:03:02]} d6 {[%emt 0:00:00]} 7. O-O {[%emt 0:03:35]} O-O {[%emt 0:00:00]} 8. a3 {[%emt 0:08:12]} a5 {[%emt 0:00:00]} 9. Rb1 {[%emt 0:06:44]} Be6 {[%emt 0:00:00]} 10. Nd5 {[%emt 0:03:21]} Bf5 {[%emt 0:00:00]} 11. d3 {[%emt 0:04:30]} Rb8 {[%emt 0:00:00]} 12. Nec3 {[%emt 0:02:08]} Nxd5 {[%emt 0:00:00]} 13. Nxd5 {[%emt 0:05:00]} Ne7 {[%emt 0:00:00]} 14. e4 {[%emt 0:05:04]} Bd7 {[%emt 0:00:00]} 15. Bd2 {[%emt 0:04:06]} a4 {[%emt 0:00:00]} 16. Qc2 {[%emt 0:06:35]} b6 {[%emt 0:05:30]} 17. Nc3 {[%emt 0:42:16]} Ra8 {[%emt 0:00:30]} 18. f4 {[%emt 0:00:30]} c5 {[%emt 0:00:00]} 19. Be3 {[%emt 0:00:00]} f6 {[%emt 0:00:00]} 20. Kh1 {[%emt 0:00:00]} Qe8 {[%emt 0:00:00]} 21. fxe5 {[%emt 0:00:00]} fxe5 {[%emt 0:00:00]} 22. Bg5 {[%emt 0:00:00]} Bc6 {[%emt 0:00:00]} 23. Rxf8+ {[%emt 0:00:00]} Qxf8 {[%emt 0:00:00]} 24. Rf1 {[%emt 0:00:00]} Qe8 {[%emt 0:00:00]} 25. Bh3 {[%emt 0:00:00]} h6 {[%emt 0:00:00]} 26. Be6+ {[%emt 0:00:00]} Kh7 {[%emt 0:00:00]} 27. Bxe7 {[%emt 0:00:00]} Qxe7 {[%emt 0:00:00]} 28. Bd5 {[%emt 0:00:00]} Bxd5 {[%emt 0:00:00]} 29. Nxd5 {[%emt 0:00:00]} Qb7 {[%emt 0:00:00]} 30. Qd1 {[%emt 0:00:00]} Ra7 {[%emt 0:02:27]} 31. Nc3 {[%emt 0:02:39]} Qd7 {[%emt 0:00:24]} 32. Kg2 {[%emt 0:02:13]} h5 {[%emt 0:00:52]} 33. h3 {[%emt 0:01:11]} Qe8 {[%emt 0:00:38]} 34. Nb5 {[%emt 0:00:31]} Rf7 {[%emt 0:01:58]} 35. Rxf7 {[%emt 0:00:56]} Qxf7 {[%emt 0:00:05]} 36. Qf3 {[%emt 0:00:47]} Qd7 {[%emt 0:00:26]} 37. g4 {[%emt 0:00:29]} hxg4 {[%emt 0:00:51]} 38. Qxg4 {[%emt 0:00:02]} Qd8 {[%emt 0:00:11]} 39. Nc3 {[%emt 0:00:32]} Bh6 {[%emt 0:00:22]} 40. Nxa4 {[%emt 0:00:00]} Be3 {[%emt 0:00:00]} 41. h4 {[%emt 0:07:02]} Qf8 {[%emt 0:12:00]} 42. Qf3 {[%emt 0:02:29]} Qh6 {[%emt 0:00:13]} 43. Nxb6 {[%emt 0:02:41]} Bc1 {[%emt 0:00:32]} 44. Nd5 {[%emt 0:01:49]} Bxb2 {[%emt 0:10:42]} 45. a4 {[%emt 0:04:14]} Bc1 {[%emt 0:03:04]} 46. a5 {[%emt 0:04:17]} Kg8 {[%emt 0:03:44]} 47. Nf6+ {[%emt 0:03:45]} Kg7 {[%emt 0:00:15]} 48. Nd7 {[%emt 0:01:11]} Bf4 {[%emt 0:01:14]} 49. Kh3 {[%emt 0:04:30]} Qh8 {[%emt 0:01:08]} 50. Qg4 {[%emt 0:00:32]} Kf7 {[%emt 0:00:53]} 51. Nb6 {[%emt 0:00:31]} Qf6 {[%emt 0:02:31]} 52. Qd7+ {[%emt 0:00:51]} Kg8 {[%emt 0:00:18]} 53. Nd5 {[%emt 0:00:20]} Qf8 {[%emt 0:00:17]} 54. Qe6+ {[%emt 0:00:38]} 1-0

[Event "Belarus-ch Women 2022"]
[Site "Minsk"]
[Date "2022.01.13"]
[Round "3.3"]
[White "Khomich, Maryna"]
[Black "Bendik, Margarita"]
[Result "0-1"]
[ECO "A07"]
[WhiteElo "1627"]
[BlackElo "1388"]
[Annotator "NA"]
[PlyCount "64"]
[EventDate "2022.01.11"]
[EventType "tourn"]
[EventCountry "BLR"]
[SourceTitle "playchess.com"]
[Source "ChessBase"]
[SourceQuality "1"]
[TimeControl "40/5400+30:1800+30"]

1. Nf3 {[%emt 0:00:03]} Nf6 {[%emt 0:01:10]} 2. g3 {[%emt 0:00:17]} d5 {[%emt 0:00:15]} 3. Bg2 {[%emt 0:00:54]} c6 {[%emt 0:00:26]} 4. b3 {[%emt 0:01:36]} Bf5 {[%emt 0:10:01]} 5. O-O {[%emt 0:00:33]} Nbd7 {[%emt 0:00:33]} 6. Bb2 {[%emt 0:00:47]} Qc7 {[%emt 0:00:28]} 7. d3 {[%emt 0:03:56]} e5 {[%emt 0:04:16]} 8. Nbd2 {[%emt 0:00:28]} Bd6 {[%emt 0:01:21]} 9. Re1 {[%emt 0:07:57]} O-O-O {[%emt 0:11:57]} 10. e4 {[%emt 0:00:59]} dxe4 {[%emt 0:02:22]} 11. dxe4 {[%emt 0:00:07]} Bg4 {[%emt 0:00:52]} 12. Qe2 {[%emt 0:03:05]} h5 {[%emt 0:04:39]} 13. Nc4 {[%emt 0:13:57]} Nh7 {[%emt 0:21:07]} 14. Bc3 {[%emt 0:16:53]} f6 {[%emt 0:04:59]} 15. Ba5 {[%emt 0:00:44]} b6 {[%emt 0:02:30]} 16. Nxd6+ {[%emt 0:04:03]} Qxd6 {[%emt 0:00:06]} 17. Qa6+ {[%emt 0:00:14]} Kb8 {[%emt 0:00:05]} 18. Bc3 {[%emt 0:07:21]} Nc5 {[%emt 0:08:05]} 19. Qc4 {[%emt 0:00:20]} Qe6 {[%emt 0:06:12]} 20. Qb4 {[%emt 0:10:36]} Bxf3 {[%emt 0:02:33]} 21. Bxf3 {[%emt 0:00:05]} Ng5 {[%emt 0:00:21]} 22. Bg2 {[%emt 0:00:09]} h4 {[%emt 0:01:11]} 23. Bd2 {[%emt 0:08:36]} hxg3 {[%emt 0:06:46]} 24. hxg3 {[%emt 0:00:06]} Ngxe4 {[%emt 0:04:08]} 25. Be3 {[%emt 0:03:45]} f5 {[%emt 0:06:04]} 26. f3 {[%emt 0:04:50]} Na6 {[%emt 0:00:20]} 27. Qa3 {[%emt 0:01:05]} f4 {[%emt 0:00:41]} 28. fxe4 {[%emt 0:05:05]} fxe3 {[%emt 0:00:19]} 29. Qxa6 {[%emt 0:00:17]} Qh6 {[%emt 0:00:28]} 30. Qe2 {[%emt 0:03:49]} Qh2+ {[%emt 0:00:29]} 31. Kf1 {[%emt 0:00:03]} Rdf8+ {[%emt 0:00:11]} 32. Bf3 {[%emt 0:00:10]} Qh1# {[%emt 0:00:05]} 0-1

[Event "Belarus-ch Women 2022"]
[Site "Minsk"]
[Date "2022.01.13"]
[Round "3.4"]
[White "Koishman, Karina"]
[Black "Liashkevich, Lizaveta"]
[Result "0-1"]
[ECO "D01"]
[WhiteElo "1359"]
[BlackElo "1569"]
[Annotator "NA"]
[PlyCount "66"]
[EventDate "2022.01.11"]
[EventType "tourn"]
[EventCountry "BLR"]
[SourceTitle "playchess.com"]
[Source "ChessBase"]
[SourceQuality "1"]
[TimeControl "40/5400+30:1800+30"]

1. d4 {[%emt 0:00:02]} d5 {[%emt 0:00:06]} 2. Nc3 {[%emt 0:00:07]} Nf6 {[%emt 0:00:25]} 3. Bg5 {[%emt 0:00:07]} c6 {[%emt 0:00:30]} 4. f3 {[%emt 0:00:20]} Qb6 {[%emt 0:03:54]} 5. Qd2 {[%emt 0:01:57]} Qxb2 {[%emt 0:06:49]} 6. Rb1 {[%emt 0:00:15]} Qa3 {[%emt 0:00:16]} 7. e4 {[%emt 0:01:23]} dxe4 {[%emt 0:06:24]} 8. fxe4 {[%emt 0:01:57]} Nbd7 {[%emt 0:09:14]} 9. Nf3 {[%emt 0:07:26]} e6 {[%emt 0:01:56]} 10. Bd3 {[%emt 0:05:14]} Qa5 {[%emt 0:11:17]} 11. O-O {[%emt 0:04:51]} h6 {[%emt 0:07:25]} 12. Be3 {[%emt 0:05:32]} Ng4 {[%emt 0:04:12]} 13. Bf4 {[%emt 0:04:12]} e5 {[%emt 0:02:47]} 14. Nxe5 {[%emt 0:05:51]} Ndxe5 {[%emt 0:02:42]} 15. Bxe5 {[%emt 0:00:33]} Nxe5 {[%emt 0:00:15]} 16. dxe5 {[%emt 0:00:10]} Qxe5 {[%emt 0:02:11]} 17. Ne2 {[%emt 0:07:14]} Bd6 {[%emt 0:01:31]} 18. g3 {[%emt 0:11:01]} O-O {[%emt 0:01:40]} 19. Nf4 {[%emt 0:03:25]} b6 {[%emt 0:04:21]} 20. Kh1 {[%emt 0:03:43]} h5 {[%emt 0:03:13]} 21. Rbe1 {[%emt 0:03:19]} b5 {[%emt 0:02:13]} 22. c3 {[%emt 0:10:30]} a5 {[%emt 0:04:14]} 23. Bc2 {[%emt 0:01:56]} c5 {[%emt 0:09:09]} 24. Nxh5 {[%emt 0:05:22]} Be6 {[%emt 0:07:35]} 25. Bd1 {[%emt 0:05:05]} b4 {[%emt 0:03:38]} 26. cxb4 {[%emt 0:05:00]} axb4 {[%emt 0:00:09]} 27. Bb3 {[%emt 0:03:15]} c4 {[%emt 0:00:33]} 28. Bxc4 {[%emt 0:03:45]} Bxc4 {[%emt 0:00:22]} 29. Rf5 {[%emt 0:00:06]} Qc3 {[%emt 0:01:34]} 30. Qg5 {[%emt 0:01:16]} Qxe1+ {[%emt 0:00:21]} 31. Kg2 {[%emt 0:00:06]} Bf1+ {[%emt 0:03:28]} 32. Rxf1 {[%emt 0:00:28]} Qxe4+ {[%emt 0:00:10]} 33. Kh3 {[%emt 0:00:21]} Qg6 {[%emt 0:00:38]} 0-1

[Event "Belarus-ch Women 2022"]
[Site "Minsk"]
[Date "2022.01.13"]
[Round "3.5"]
[White "Poliakova, Varvara"]
[Black "Shaban, Aliaksandra"]
[Result "1-0"]
[ECO "B15"]
[WhiteElo "2116"]
[BlackElo "1680"]
[Annotator "ChessBase"]
[PlyCount "115"]
[EventDate "2022.01.11"]
[EventType "tourn"]
[EventCountry "BLR"]
[SourceTitle "playchess.com"]
[Source "ChessBase"]
[SourceQuality "1"]
[TimeControl "40/5400+30:1800+30"]

1. e4 {[%emt 0:00:02]} c6 {[%emt 0:00:04]} 2. d4 {[%emt 0:00:07]} d5 {[%emt 0:00:06]} 3. Nd2 {[%emt 0:00:05]} dxe4 {[%emt 0:00:05]} 4. Nxe4 {[%emt 0:00:02]} Nf6 {[%emt 0:00:07]} 5. Nxf6+ {[%emt 0:00:10]} exf6 {[%emt 0:00:06]} 6. Nf3 {[%emt 0:05:20]} Bd6 {[%emt 0:01:23]} 7. Be3 {[%emt 0:03:41]} Bg4 {[%emt 0:05:21]} 8. Qd2 {[%emt 0:01:54]} Nd7 {[%emt 0:04:36]} 9. Bd3 {[%emt 0:07:28]} Qc7 {[%emt 0:03:15]} 10. O-O-O {[%emt 0:02:39]} Nf8 {[%emt 0:05:21]} 11. d5 {[%emt 0:10:39]} a6 {[%emt 0:09:29]} 12. dxc6 {[%emt 0:04:44]} Qxc6 {[%emt 0:03:21]} 13. Nd4 {[%emt 0:12:45]} Qc7 {[%emt 0:04:19]} 14. Nf5 {[%emt 0:03:01]} Bxf5 {[%emt 0:09:21]} 15. Bxf5 {[%emt 0:00:02]} Rd8 {[%emt 0:01:39]} 16. Qd5 {[%emt 0:05:32]} g6 {[%emt 0:08:17]} 17. Be4 {[%emt 0:06:00]} b5 {[%emt 0:10:15]} 18. Qc6+ {[%emt 0:02:13]} Qxc6 {[%emt 0:00:32]} 19. Bxc6+ {[%emt 0:00:03]} Ke7 {[%emt 0:00:09]} 20. Rd3 {[%emt 0:01:10]} Ne6 {[%emt 0:04:08]} 21. Rhd1 {[%emt 0:02:07]} f5 {[%emt 0:11:25]} 22. g3 {[%emt 0:01:26]} f4 {[%emt 0:02:57]} 23. Bb6 {[%emt 0:00:54]} Rb8 {[%emt 0:01:32]} 24. Ba5 {[%emt 0:02:56]} Be5 {[%emt 0:01:23]} 25. Rd7+ {[%emt 0:02:12]} Kf6 {[%emt 0:00:02]} 26. c3 {[%emt 0:07:01]} Nc5 {[%emt 0:02:39]} 27. R7d5 {[%emt 0:02:09]} Ne6 {[%emt 0:01:11]} 28. Bb4 {[%emt 0:01:13]} Rhc8 {[%emt 0:01:54]} 29. Bd7 {[%emt 0:00:35]} Rg8 {[%emt 0:02:07]} 30. Re1 {[%emt 0:02:52]} Bc7 {[%emt 0:01:14]} 31. Bxe6 {[%emt 0:00:39]} fxe6 {[%emt 0:00:11]} 32. Rc5 {[%emt 0:00:11]} Bb6 {[%emt 0:01:53]} 33. Rc6 {[%emt 0:00:09]} Rge8 {[%emt 0:00:14]} 34. Re4 {[%emt 0:04:25]} fxg3 {[%emt 0:00:52]} 35. fxg3 {[%emt 0:00:28]} Rb7 {[%emt 0:01:09]} 36. Bd6 {[%emt 0:01:03]} g5 {[%emt 0:01:11]} 37. g4 {[%emt 0:01:22]} a5 {[%emt 0:01:41]} 38. Re2 {[%emt 0:01:11]} Kf7 {[%emt 0:01:12]} 39. Kc2 {[%emt 0:00:57]} h6 {[%emt 0:00:34]} 40. Re1 {[%emt 0:00:00]} Bd8 {[%emt 0:00:00]} 41. Rc8 {[%emt 0:05:20]} Rd7 {[%emt 0:05:03]} 42. Bg3 {[%emt 0:01:45]} Ree7 {[%emt 0:02:44]} 43. Be5 {[%emt 0:05:27]} Kg6 {[%emt 0:01:37]} 44. Rc6 {[%emt 0:01:03]} Re8 {[%emt 0:01:19]} 45. Bd4 {[%emt 0:01:04]} Kf7 {[%emt 0:00:47]} 46. Rf1+ {[%emt 0:01:03]} Kg6 {[%emt 0:01:39]} 47. Re1 {[%emt 0:01:24]} Kf7 {[%emt 0:00:20]} 48. Rc8 {[%emt 0:00:28]} Rd5 {[%emt 0:12:39]} 49. Be5 {[%emt 0:08:46]} Rd7 {[%emt 0:02:57]} 50. Rf1+ {[%emt 0:01:01]} Kg6 {[%emt 0:00:34]} 51. Rd1 {[%emt 0:04:52]} Rxd1 52. Kxd1 {[%emt 0:00:02]} Kf7 {[%emt 0:02:01]} 53. Rb8 {[%emt 0:00:29]} Be7 {[%emt 0:04:55]} 54. Rxb5 {[%emt 0:00:12]} Rd8+ {[%emt 0:00:08]} 55. Kc2 {[%emt 0:00:26]} Rd5 {[%emt 0:00:23]} 56. Rxd5 {[%emt 0:00:07]} exd5 {[%emt 0:00:03]} 57. Kd3 {[%emt 0:00:18]} Bf8 {[%emt 0:00:26]} 58. b3 {[%emt 0:00:08]} 1-0

[Event "Belarus-ch Women 2022"]
[Site "Minsk"]
[Date "2022.01.14"]
[Round "4.1"]
[White "Sidorenja, Milena"]
[Black "Shaban, Aliaksandra"]
[Result "1-0"]
[ECO "D02"]
[WhiteElo "1510"]
[BlackElo "1680"]
[Annotator "NA"]
[PlyCount "109"]
[EventDate "2022.01.11"]
[EventType "tourn"]
[EventCountry "BLR"]
[SourceTitle "playchess.com"]
[Source "ChessBase"]
[SourceQuality "1"]
[TimeControl "40/5400+30:1800+30"]

1. d4 {[%emt 0:00:02]} d5 {[%emt 0:00:12]} 2. c3 {[%emt 0:00:08]} Nf6 {[%emt 0:00:05]} 3. Nf3 {[%emt 0:00:10]} e6 {[%emt 0:00:22]} 4. Bf4 {[%emt 0:00:11]} Bd6 {[%emt 0:00:19]} 5. Bxd6 {[%emt 0:00:08]} Qxd6 {[%emt 0:00:08]} 6. e3 {[%emt 0:00:10]} c5 {[%emt 0:00:56]} 7. Bd3 {[%emt 0:02:48]} Nc6 {[%emt 0:01:43]} 8. O-O {[%emt 0:00:30]} O-O {[%emt 0:00:33]} 9. Qe2 {[%emt 0:02:11]} a6 {[%emt 0:02:20]} 10. Nbd2 {[%emt 0:00:30]} Bd7 {[%emt 0:01:05]} 11. Rad1 {[%emt 0:02:34]} e5 {[%emt 0:03:44]} 12. dxe5 {[%emt 0:00:06]} Nxe5 {[%emt 0:00:04]} 13. Nxe5 {[%emt 0:00:10]} Qxe5 {[%emt 0:00:02]} 14. e4 {[%emt 0:07:16]} dxe4 {[%emt 0:03:37]} 15. Nxe4 {[%emt 0:00:08]} Nxe4 {[%emt 0:06:09]} 16. Qxe4 {[%emt 0:00:23]} Qxe4 {[%emt 0:00:07]} 17. Bxe4 {[%emt 0:00:06]} Bb5 {[%emt 0:00:54]} 18. Rfe1 {[%emt 0:00:20]} Rab8 {[%emt 0:00:31]} 19. Rd6 {[%emt 0:01:40]} Rfe8 {[%emt 0:02:17]} 20. f3 {[%emt 0:02:56]} g6 {[%emt 0:03:34]} 21. Kf2 {[%emt 0:02:32]} Rbd8 {[%emt 0:04:08]} 22. Red1 {[%emt 0:02:04]} Rxd6 {[%emt 0:00:12]} 23. Rxd6 {[%emt 0:00:06]} f5 {[%emt 0:03:04]} 24. Bd5+ {[%emt 0:00:14]} Kg7 {[%emt 0:00:35]} 25. c4 {[%emt 0:00:14]} Bc6 {[%emt 0:02:26]} 26. Bxc6 {[%emt 0:00:39]} bxc6 {[%emt 0:00:02]} 27. Rxc6 {[%emt 0:00:09]} Rd8 {[%emt 0:00:59]} 28. Ke3 {[%emt 0:02:24]} f4+ {[%emt 0:01:50]} 29. Ke2 {[%emt 0:01:05]} Re8+ {[%emt 0:00:06]} 30. Kd2 {[%emt 0:00:10]} Rd8+ {[%emt 0:00:17]} 31. Kc3 {[%emt 0:00:12]} Re8 {[%emt 0:00:37]} 32. Rxc5 {[%emt 0:00:32]} Re2 {[%emt 0:00:16]} 33. Rd5 {[%emt 0:00:12]} Rxg2 {[%emt 0:00:27]} 34. Rd2 {[%emt 0:00:07]} Rg5 {[%emt 0:02:34]} 35. b4 {[%emt 0:00:21]} Re5 {[%emt 0:00:23]} 36. Rf2 {[%emt 0:01:06]} Kf6 {[%emt 0:00:25]} 37. a4 {[%emt 0:00:34]} Re1 {[%emt 0:02:38]} 38. Kd4 {[%emt 0:00:36]} Ke6 {[%emt 0:03:16]} 39. Kc5 {[%emt 0:00:57]} Kd7 {[%emt 0:00:38]} 40. Rd2+ {[%emt 0:00:00]} Kc7 {[%emt 0:00:00]} 41. b5 {[%emt 0:01:40]} axb5 {[%emt 0:01:41]} 42. axb5 {[%emt 0:00:06]} Re6 {[%emt 0:00:59]} 43. Rd4 {[%emt 0:01:31]} Rf6 {[%emt 0:00:40]} 44. Re4 {[%emt 0:00:24]} Rf5+ {[%emt 0:00:50]} 45. Kd4 {[%emt 0:01:24]} Kd7 {[%emt 0:01:36]} 46. Re5 {[%emt 0:00:48]} Rf6 {[%emt 0:00:07]} 47. c5 {[%emt 0:00:12]} h6 {[%emt 0:00:45]} 48. Kd5 {[%emt 0:00:10]} g5 {[%emt 0:00:52]} 49. b6 {[%emt 0:00:19]} g4 {[%emt 0:01:04]} 50. b7 {[%emt 0:01:23]} Kc7 {[%emt 0:00:27]} 51. Re7+ {[%emt 0:00:08]} Kb8 {[%emt 0:00:02]} 52. c6 {[%emt 0:00:17]} Rf8 {[%emt 0:00:20]} 53. Kc5 {[%emt 0:01:55]} g3 {[%emt 0:00:41]} 54. Kb6 {[%emt 0:00:30]} g2 {[%emt 0:00:04]} 55. c7# {[%emt 0:00:05]} 1-0

[Event "Belarus-ch Women 2022"]
[Site "Minsk"]
[Date "2022.01.14"]
[Round "4.3"]
[White "Bendik, Margarita"]
[Black "Koishman, Karina"]
[Result "0-1"]
[ECO "D05"]
[WhiteElo "1388"]
[BlackElo "1359"]
[Annotator "NA RC"]
[PlyCount "96"]
[EventDate "2022.01.11"]
[EventType "tourn"]
[EventCountry "BLR"]
[SourceTitle "playchess.com"]
[Source "ChessBase"]
[SourceQuality "1"]
[TimeControl "40/5400+30:1800+30"]

1. Nf3 {[%emt 0:00:03]} Nf6 {[%emt 0:00:13]} 2. b3 {[%emt 0:00:32]} e6 {[%emt 0:00:23]} 3. Bb2 {[%emt 0:00:09]} d5 {[%emt 0:00:19]} 4. e3 {[%emt 0:00:08]} c5 {[%emt 0:00:51]} 5. d4 {[%emt 0:00:09]} Nc6 {[%emt 0:00:22]} 6. Bd3 {[%emt 0:00:12]} Bd6 {[%emt 0:00:47]} 7. Nbd2 {[%emt 0:00:11]} O-O {[%emt 0:01:28]} 8. Ne5 {[%emt 0:00:28]} Qc7 {[%emt 0:01:06]} 9. Nxc6 {[%emt 0:00:32]} bxc6 {[%emt 0:01:00]} 10. dxc5 {[%emt 0:00:51]} Be5 {[%emt 0:04:49]} 11. Qb1 {[%emt 0:19:28]} Nd7 {[%emt 0:08:55]} 12. c3 {[%emt 0:06:38]} f5 {[%emt 0:06:44]} 13. b4 {[%emt 0:03:17]} Rb8 {[%emt 0:06:41]} 14. Nb3 {[%emt 0:02:38]} a5 {[%emt 0:06:45]} 15. a3 {[%emt 0:04:11]} h6 {[%emt 0:09:23]} 16. g3 {[%emt 0:06:17]} Bf6 {[%emt 0:10:40]} 17. Qc2 {[%emt 0:04:41]} axb4 {[%emt 0:04:03]} 18. axb4 {[%emt 0:09:42]} Ne5 {[%emt 0:03:57]} 19. Be2 {[%emt 0:01:01]} Nf7 {[%emt 0:07:33]} 20. O-O {[%emt 0:05:56]} Ng5 {[%emt 0:02:52]} 21. Ra4 {[%emt 0:01:26]} e5 {[%emt 0:02:35]} 22. Rfa1 {[%emt 0:04:58]} f4 {[%emt 0:04:09]} 23. Ra7 {[%emt 0:02:12]} Rb7 {[%emt 0:02:05]} 24. Rxb7 {[%emt 0:00:27]} Bxb7 {[%emt 0:00:22]} 25. h4 {[%emt 0:10:53]} Ne4 {[%emt 0:04:23]} 26. Nd2 {[%emt 0:04:29]} Nxd2 {[%emt 0:03:29]} 27. Qxd2 {[%emt 0:00:08]} fxg3 {[%emt 0:01:33]} 28. fxg3 {[%emt 0:00:15]} e4 {[%emt 0:00:29]} 29. Kg2 {[%emt 0:01:38]} Be5 {[%emt 0:02:17]} 30. Qe1 {[%emt 0:02:44]} Rf6 {[%emt 0:01:44]} 31. Rb1 {[%emt 0:01:51]} Rg6 {[%emt 0:00:42]} 32. g4 {[%emt 0:00:30]} Bc8 {[%emt 0:00:32]} 33. h5 {[%emt 0:00:50]} Rg5 {[%emt 0:00:23]} 34. Qh4 {[%emt 0:00:21]} Qe7 {[%emt 0:01:37]} 35. Qh3 {[%emt 0:02:21]} Be6 {[%emt 0:00:52]} 36. Rg1 {[%emt 0:02:19]} Qa7 {[%emt 0:01:30]} 37. Kf2 {[%emt 0:03:34]} Qa2 {[%emt 0:00:34]} 38. Ba1 {[%emt 0:00:17]} Qa3 {[%emt 0:00:41]} 39. Qf1 {[%emt 0:01:01]} Bxc3 {[%emt 0:00:29]} 40. Bxc3 {[%emt 0:00:00]} Qxc3 {[%emt 0:00:00]} 41. Qb1 {[%emt 0:01:53]} Qe5 {[%emt 0:03:44]} 42. Rg2 {[%emt 0:05:28]} d4 {[%emt 0:02:56]} 43. exd4 {[%emt 0:04:33]} Qxd4+ {[%emt 0:02:22]} 44. Kf1 {[%emt 0:00:13]} e3 {[%emt 0:02:48]} 45. Qd1 {[%emt 0:12:51]} Qf4+ {[%emt 0:00:43]} 46. Kg1 {[%emt 0:00:12]} Bd5 {[%emt 0:00:09]} 47. Rh2 {[%emt 0:03:02]} Qg3+ {[%emt 0:00:12]} 48. Kf1 {[%emt 0:00:17]} Qxh2 {[%emt 0:00:08]} 0-1